fUST/lending_fUST_20240119
["ID","MTS","AMOUNT","RATE_DAILY","PERIOD"]
[312126011,1705654038123,-4652.20005646,0.00029643,2]
[312126012,1705654038143,-1122.04957709,0.00029645,2]
[312126013,1705654041155,-3145.68974836,0.00029645,2]
[312126041,1705654233029,-4811.28224285,0.00029096,2]
[312126042,1705654233052,-4011.58774012,0.00029097,2]
[312126043,1705654233073,-24900.0,0.00029099,2]
[312126046,1705654233102,-276.958521,0.00029181,2]
[312126048,1705654233130,-1824.95710943,0.00029645,2]
[312126050,1705654233149,-394.104469,0.000297,2]
[312126051,1705654233380,-21675.6082244,0.00029888,2]
[312126052,1705654233407,-257.555542,0.00030137,2]
[312126054,1705654233426,-172.679821,0.00030137,2]
[312126055,1705654233445,-400.0,0.00030137,2]
[312126056,1705654233464,-876.78,0.00030181,3]
[312126058,1705654233494,-1501.37,0.00030181,3]
[312126059,1705654233510,-1251.14,0.00030181,3]
[312126060,1705654233533,-1042.61,0.00030181,3]
[312126061,1705654233549,-1174.0944681,0.0003019,4]
[312126062,1705654233564,-154.92253873,0.0003019,4]
[312126063,1705654233586,-435.62017009,0.0003019,4]
[312126064,1705654233612,-1289.91154243,0.0003019,4]
[312126065,1705654233633,-606.8265066,0.0003019,4]
[312126066,1705654233654,-2995.12470388,0.0003019,4]
[312126067,1705654233686,-282.86715559,0.00030191,4]
[312126068,1705654233700,-3728.32259616,0.00030191,2]
[312126085,1705654239114,-4226.47101405,0.00030191,2]
[312126086,1705654239134,-500.0,0.00030191,2]
[312126087,1705654239160,-50000.0,0.00030192,4]
[312126088,1705654239185,-500.0,0.00030328,2]
[312126089,1705654239207,-500.0,0.00030465,2]
[312126091,1705654239237,-219.79285925,0.000305,2]
[312126092,1705654239255,-219.79285,0.000305,2]
[312126093,1705654239279,-500.0,0.00030602,2]
[312126094,1705654239300,-155.0,0.000307,2]
[312126095,1705654239321,-500.0,0.00030739,2]
[312126096,1705654239454,-500.0,0.00030876,2]
[312126097,1705654239474,-257.555542,0.00030959,2]
[312126098,1705654239504,-238.08130584,0.00031,2]
[312126099,1705654239524,-12246.33131918,0.00031,5]
[312126100,1705654239542,-205.94898392,0.00031013,2]
[312126101,1705654239564,-179.7666778,0.000316,2]
[312126102,1705654239589,-179.7666778,0.00031633,2]
[312126103,1705654239604,-179.7666778,0.00031667,2]
[312126104,1705654239623,-553.84,0.00031699,2]
[312126108,1705654239650,-553.84,0.00031699,2]
[312126110,1705654239672,-553.84,0.00031699,2]
[312126116,1705654239702,-553.84,0.00031699,2]
[312126125,1705654239730,-553.84,0.00031699,2]
[312126128,1705654239754,-553.84,0.00031699,2]
[312126132,1705654239782,-553.84,0.00031699,2]
[312126134,1705654239805,-553.84,0.00031699,2]
[312126136,1705654239823,-553.84,0.00031699,2]
[312126137,1705654239845,-553.84,0.00031699,2]
[312126140,1705654239865,-500.0,0.00031699,2]
[312126142,1705654239889,-189.91850063,0.00031699,2]
[312126144,1705654239907,-500.0,0.00031699,2]
[312126145,1705654239934,-500.0,0.00031699,2]
[312126147,1705654239953,-227.98595755,0.00031699,2]
[312126149,1705654239967,-329.11749755,0.00031699,2]
[312126151,1705654239992,-293.13914508,0.00031699,2]
[312126153,1705654240015,-500.0,0.00031699,2]
[312126154,1705654240028,-500.0,0.00031699,2]
[312126156,1705654240050,-500.0,0.00031699,2]
[312126159,1705654240071,-500.0,0.00031699,2]
[312126161,1705654240097,-500.0,0.00031699,2]
[312126163,1705654240117,-500.0,0.00031699,2]
[312126165,1705654240140,-500.0,0.00031699,2]
[312126167,1705654240162,-500.0,0.00031699,2]
[312126169,1705654240194,-377.622,0.00031699,2]
[312126170,1705654240214,-525.45623836,0.00031699,4]
[312126171,1705654240231,-521.80015785,0.00031699,4]
[312126172,1705654240251,-475.01653594,0.00031699,4]
[312126173,1705654240271,-192.93730008,0.000317,3]
[312126174,1705654240309,-276000.0,0.000317,2]
[312126175,1705654240333,-38560.35367316,0.000317,3]
[312126176,1705654240352,-179.7666778,0.000317,2]
[312126177,1705654240370,-214.0,0.0003177,30]
[312126179,1705654240393,-214.0,0.0003178,30]
[312126181,1705654240431,-257.555542,0.00031781,2]
[312126184,1705654240451,-214.0,0.0003179,30]
[312126187,1705654240471,-228.01384031,0.00031798,4]
[312126191,1705654240501,-253.97986618,0.00031798,4]
[312126195,1705654240524,-154.92253873,0.00031798,4]
[312126199,1705654240555,-260.99609825,0.00031798,4]
[312126203,1705654240571,-1160.53170858,0.00031798,4]
[312126207,1705654240589,-191.31512244,0.00031798,4]
[312126210,1705654240612,-155.34362049,0.00031798,4]
[312126213,1705654240634,-439.58570389,0.00031798,4]
[312126216,1705654240663,-222.91353684,0.00031798,4]
[312126218,1705654240683,-301.77611122,0.00031798,4]
[312126221,1705654240697,-346.38618659,0.00031798,4]
[312126225,1705654240723,-214.0852314,0.00031798,4]
[312126227,1705654240738,-238715.82249533,0.000318,2]
[312126243,1705654240850,-6420.70369576,0.000318,2]
[312126247,1705654240885,-19251.52186118,0.000318,2]
[312126301,1705654242236,-438.49322722,0.00031699,4]
[312126302,1705654242253,-24222.0839795,0.000318,2]
[312126305,1705654242287,-5336.10485558,0.0003019,7]
[312126306,1705654242310,-4291.1465399,0.000318,2]
[312126390,1705654244109,-338.23929914,0.00031799,4]
[312126392,1705654244135,-538.30998523,0.000318,2]
[312126745,1705654492508,1135.92,0.0002104,15]
[312126746,1705654492556,2864.08,0.0002104,15]
[312126748,1705654604141,-1300.0,0.0002104,2]
[312126749,1705654763361,154.8915759,0.0002104,30]
[312126750,1705654785350,173.91882481,0.0002104,30]
[312126753,1705655240108,-524.95710943,0.0002104,2]
[312126754,1705655240140,-1145.3149296,0.00023774,2]
[312126755,1705655240174,-1471.54597428,0.000297,2]
[312126756,1705655240433,-534.83211663,0.0003,3]
[312126757,1705655240460,-688.01285151,0.0003013,4]
[312126758,1705655240504,-4472.50316855,0.00030131,2]
[312126759,1705655248116,-460.17684779,0.00030131,2]
[312126760,1705655327190,-760.0,0.0002104,2]
[312126761,1705655363110,-226.6103945,0.00028528,5]
[312126853,1705655442462,-533.70750713,0.00028528,5]
[312126854,1705655442484,-681.78811125,0.0003,3]
[312126855,1705655442506,-1200.0,0.0003,4]
[312126856,1705655442533,-2451.9577286,0.00030131,2]
[312126857,1705655442552,-195.20473695,0.00030131,4]
[312126858,1705655442568,-283.06089695,0.00030131,3]
[312126860,1705655442589,-154.87609912,0.00030131,2]
[312126862,1705655442639,-19967.31998366,0.00030131,2]
[312126865,1705655442661,-217.19024,0.00030137,2]
[312126867,1705655442690,-168.563298,0.00030137,2]
[312126869,1705655442709,-678.70377341,0.00030137,2]
[312126871,1705655442728,-155.0,0.000307,2]
[312126874,1705655442768,-217.19024,0.00030959,2]
[312126876,1705655442788,-3481.25171774,0.00031064,4]
[312126878,1705655442808,-179.7666778,0.000316,2]
[312126879,1705655442824,-500.0,0.00031697,2]
[312126880,1705655442853,-439.58570389,0.00031698,4]
[312126881,1705655442877,-301.77611122,0.00031698,4]
[312126882,1705655442895,-155.34362049,0.00031698,4]
[312126883,1705655442915,-222.91353684,0.00031698,4]
[312126885,1705655442931,-191.31512244,0.00031698,4]
[312126887,1705655442952,-260.99609825,0.00031698,4]
[312126889,1705655442972,-154.92253873,0.00031698,4]
[312126890,1705655442992,-346.38618659,0.00031698,4]
[312126891,1705655443018,-1160.53170858,0.00031698,4]
[312126892,1705655443041,-1858.7499098,0.00031698,5]
[312126893,1705655443073,-253.97986618,0.00031698,4]
[312126894,1705655443086,-228.01384031,0.00031698,4]
[312126895,1705655443105,-154.8915759,0.00031698,4]
[312126896,1705655443127,-294.45441607,0.00031698,4]
[312126897,1705655443145,-460.17684779,0.00031698,4]
[312126898,1705655443168,-687.78292783,0.00031698,4]
[312126899,1705655443191,-214.0852314,0.00031699,4]
[312126900,1705655443213,-37019.10879963,0.000317,2]
[312126901,1705655443382,-2856.93467627,0.000317,2]
[312126905,1705655445742,-4929.35,0.0003169,3]
[312126906,1705655445759,-15095.18154559,0.000317,2]
[312126909,1705655447590,-8748.2852,0.000317,2]
[312126911,1705655656544,-154.87609912,0.00021034,2]
[312126912,1705655656573,-272.42186695,0.00021035,2]
[312126913,1705655656616,-154.87609912,0.00021035,2]
[312126914,1705655656664,-8757.15684933,0.00021035,2]
[312126915,1705655656700,-14678.66908548,0.00021036,2]
[312126917,1705656111882,-154.87609912,0.0001914,2]
[312126918,1705656111924,-260.99609825,0.0001914,2]
[312126919,1705656111958,-644.05484588,0.0001914,2]
[312126920,1705656111992,-4811.28224285,0.00019141,2]
[312126921,1705656112035,-154.87609912,0.00019141,2]
[312126922,1705656112063,-165.04572519,0.00019141,2]
[312126923,1705656112101,-24160.86888959,0.00019142,2]
[312126927,1705656195455,-7534.0,0.00018929,2]
[312126929,1705656258343,256.09219858,0.00021026,20]
[312126930,1705656267330,-294.70821043,0.00018921,2]
[312126931,1705656267361,-154.87609912,0.00018921,2]
[312126932,1705656267398,-1589.24944099,0.00018921,2]
[312126933,1705656267445,-3971.58661394,0.00018921,7]
[312126934,1705656267478,-154.87609912,0.00018921,2]
[312126935,1705656267514,-154.87609912,0.00018921,2]
[312126936,1705656267556,-875.93915164,0.00018922,2]
[312126937,1705656267586,-5180.65166756,0.00018922,2]
[312126938,1705656267621,-20891.20723106,0.00018922,2]
[312126939,1705656267659,-521.84055297,0.00018922,2]
[312126940,1705656267700,-230.71907883,0.00018922,2]
[312126941,1705656267936,-154.87609912,0.00018922,2]
[312126942,1705656267970,-13636.91051469,0.00018923,2]
[312126943,1705656267999,-286.22633212,0.00018923,2]
[312126944,1705656268032,-178.65716453,0.00018924,2]
[312126945,1705656268066,-323.39599469,0.00018924,2]
[312126946,1705656268107,-154.87609912,0.00018925,2]
[312126947,1705656268149,-502.52755095,0.00018925,2]
[312126949,1705656418259,-154.87609912,0.00017034,2]
[312126950,1705656418301,-607.13204194,0.00017035,2]
[312126951,1705656418340,-154.87609912,0.00017036,2]
[312126952,1705656418371,-165.04572519,0.00017224,2]
[312126953,1705656418400,-2038.05199526,0.00017224,2]
[312126954,1705656418451,-2813.43161407,0.00017224,2]
[312126955,1705656418485,-561.34972168,0.00017225,2]
[312126956,1705656418628,-4959.16437663,0.00017225,2]
[312126957,1705656418661,-154.87609912,0.00017226,2]
[312126958,1705656418699,-154.87609912,0.00017227,2]
[312126959,1705656418726,-272.42186695,0.00017227,2]
[312126960,1705656418775,-1589.24944099,0.00018816,2]
[312126961,1705656418808,-323.39599469,0.00018817,2]
[312126962,1705656418836,-171.27962684,0.00018818,2]
[312126963,1705656418870,-178.65716453,0.00018908,2]
[312126964,1705656418906,-3971.58661394,0.00018908,7]
[312126965,1705656418935,-154.87609912,0.00018909,2]
[312126966,1705656418969,-873.86173983,0.00018909,2]
[312126967,1705656419017,-12836.99158186,0.00018909,2]
[312126968,1705656445117,-267.16265354,0.00017033,2]
[312126969,1705656445171,-1245.63256029,0.00017221,2]
[312126972,1705656545109,979.24823011,0.00016,5]
[312126973,1705656546144,-154.87609912,0.00017217,2]
[312126974,1705656546178,-555.04009963,0.00017218,2]
[312126975,1705656546202,-4811.28224285,0.00017218,2]
[312126976,1705656546228,-13713.11572984,0.00017219,2]
[312126977,1705656546253,-1602.24051039,0.00017219,2]
[312126978,1705656546283,-6710.55783598,0.00017221,2]
[312126979,1705656546314,-294.70821043,0.00018912,2]
[312126980,1705656546547,-760.13811444,0.00018913,2]
[312126981,1705656546580,-683.87536543,0.00018925,2]
[312126982,1705656546608,-1275.53211699,0.00018925,2]
[312126983,1705656546635,-1109.19428477,0.00018925,2]
[312126984,1705656546666,-1354.10271366,0.00018925,5]
[312126985,1705656546693,-5117.61285537,0.00018929,2]
[312126986,1705656546721,-739.13111041,0.00019142,2]
[312126987,1705656546748,-248.347755,0.00019157,2]
[312126988,1705656546775,-163.683533,0.00019178,2]
[312126989,1705656547011,-948.557555,0.0001924,2]
[312126990,1705656547036,-187.93276,0.00019378,2]
[312126991,1705656547064,-1113.73927963,0.000195,2]
[312126992,1705656547089,-178.65716453,0.0001997,2]
[312126993,1705656547117,-1589.24944099,0.00019971,2]
[312126994,1705656547143,-2813.43161407,0.00019971,2]
[312126995,1705656547175,-3971.58661394,0.00019972,7]
[312126996,1705656547209,-873.86173983,0.00019972,2]
[312126997,1705656547241,-165.04572519,0.00019972,2]
[312126998,1705656547265,-154.87609912,0.00019972,2]
[312126999,1705656547291,-4959.16437663,0.00019974,2]
[312127000,1705656547319,-155.0163289,0.0002,2]
[312127001,1705656547348,-154.87609912,0.0002,2]
[312127002,1705656547381,-154.87609912,0.00020021,2]
[312127003,1705656547406,-238.23153817,0.00020022,2]
[312127004,1705656547434,-2996.33579383,0.00020399,2]
[312127005,1705656547460,-151.27904284,0.000204,2]
[312127006,1705656547484,-151.27904284,0.000204,2]
[312127007,1705656547508,-151.27904284,0.000204,2]
[312127008,1705656547535,-151.27904284,0.000204,2]
[312127009,1705656547560,-151.27904284,0.000204,2]
[312127010,1705656547585,-151.27904284,0.000204,2]
[312127011,1705656547610,-151.27904284,0.000204,2]
[312127012,1705656547642,-151.27904284,0.000204,2]
[312127013,1705656547669,-151.27904284,0.000204,2]
[312127014,1705656547693,-151.27904,0.000204,2]
[312127015,1705656547719,-236.7922774,0.00020583,2]
[312127016,1705656547744,-1459.85224557,0.00020605,2]
[312127017,1705656547775,-17916.45,0.00020806,3]
[312127018,1705656547803,-200.0,0.00020807,2]
[312127019,1705656547826,-7486.77164127,0.00020816,2]
[312127020,1705656547854,-691.87469521,0.00020816,2]
[312127021,1705656547885,-704.186688,0.00020935,2]
[312127022,1705656547911,-10519.23950179,0.00021025,2]
[312127023,1705656547940,-155.25296943,0.00021025,2]
[312127024,1705656547966,-422.02193476,0.00021025,2]
[312127025,1705656548201,-16552.11703629,0.00021025,2]
[312127026,1705656548226,-2102.11817883,0.00021026,2]
[312127027,1705656548252,-154.98450155,0.00021026,2]
[312127028,1705656548276,-270.19168243,0.00021026,2]
[312127029,1705656548304,-252.20098326,0.00021026,2]
[312127030,1705656548329,-262.67274421,0.00021026,2]
[312127031,1705656548355,-641.31213139,0.00021026,2]
[312127032,1705656548391,-155.25569736,0.00021026,2]
[312127033,1705656548421,-175.52177777,0.00021026,2]
[312127034,1705656548449,-167.30882437,0.00021026,2]
[312127035,1705656548492,-184.72813403,0.00021026,2]
[312127036,1705656548519,-281.7555391,0.00021026,2]
[312127037,1705656548547,-525.71054623,0.00021026,2]
[312127038,1705656548574,-155.10885318,0.00021026,2]
[312127039,1705656548603,-155.16423546,0.00021026,2]
[312127040,1705656548633,-181.34567251,0.00021026,2]
[312127041,1705656548658,-265.66183442,0.00021026,2]
[312127042,1705656548686,-234.81558708,0.00021026,2]
[312127043,1705656548711,-154.9690062,0.00021026,2]
[312127044,1705656548740,-156.23789831,0.00021026,2]
[312127045,1705656548766,-154.87609912,0.00021026,2]
[312127046,1705656548797,-155.18445706,0.00021026,2]
[312127047,1705656548910,-277.93951097,0.00021026,2]
[312127048,1705656548939,-754.62050467,0.00021026,5]
[312127049,1705656548964,-518.34359506,0.00021026,2]
[312127050,1705656548992,-230.62037245,0.00021026,2]
[312127051,1705656549021,-155.92855729,0.00021026,2]
[312127052,1705656549055,-330.10843712,0.00021026,2]
[312127053,1705656549081,-285.96727291,0.00021026,2]
[312127054,1705656549115,-282.56006932,0.00021026,2]
[312127055,1705656549145,-1022.78910891,0.00021026,2]
[312127056,1705656549175,-229.22498899,0.00021026,2]
[312127057,1705656549199,-213.31905426,0.00021026,2]
[312127058,1705656549228,-155.58639323,0.00021026,2]
[312127059,1705656549260,-602.29832693,0.00021026,2]
[312127060,1705656549283,-272.77597099,0.00021026,2]
[312127061,1705656549307,-243.88530595,0.00021026,2]
[312127062,1705656549337,-273.22922834,0.00021026,2]
[312127063,1705656549376,-649.62717054,0.00021027,2]
[312127064,1705656549401,-155.25159228,0.00021027,2]
[312127065,1705656549424,-13897.06510588,0.00021027,2]
[312127066,1705656549449,-34011.82313534,0.00021028,2]
[312127067,1705656556109,-607.13204194,0.00019141,2]
[312127068,1705656556135,-1042.23653843,0.00021028,2]
[312127069,1705656556160,-3328.44621838,0.00021035,2]
[312127070,1705656561096,-683.87536543,0.00018925,2]
[312127071,1705656561126,-1275.30976545,0.00018925,2]
[312127072,1705656561155,-1001.98750355,0.00021027,2]
[312127073,1705656561182,-2813.43161407,0.00021034,2]
[312127074,1705656561208,-429.15717614,0.00021034,2]
[312127075,1705656561247,-554.45736113,0.00021034,2]
[312127076,1705656561273,-2996.33579383,0.00021034,2]
[312127077,1705656561402,-1268.42574386,0.00021035,2]
[312127078,1705656561435,-911.51298891,0.00021036,2]
[312127079,1705656561475,-1824.95710943,0.00021036,2]
[312127080,1705656561501,-367.27967397,0.00021036,2]
[312127081,1705656561532,-156.05814885,0.00021036,2]
[312127082,1705656561559,-1411.51273492,0.00021036,2]
[312127083,1705656561584,-154.98450155,0.00021036,2]
[312127084,1705656561612,-1468.00454349,0.00021393,2]
[312127085,1705656561640,-166.666666,0.00021918,2]
[312127086,1705656561667,-1291.51761666,0.00022,2]
[312127087,1705656561695,-323.40298137,0.00022,2]
[312127088,1705656561719,-166.666666,0.00022431,2]
[312127089,1705656561744,-280.0,0.00022888,7]
[312127090,1705656561981,-166.666666,0.00022944,2]
[312127091,1705656562012,-704.186688,0.00023176,2]
[312127092,1705656562039,-166.666666,0.00023456,2]
[312127093,1705656562064,-166.666666,0.00023969,2]
[312127094,1705656562097,-1977.45718986,0.00024,2]
[312127095,1705656562246,-2034.13055026,0.00024,2]
[312127096,1705656562269,-166.666666,0.00024482,2]
[312127097,1705656562300,-336.70442301,0.0002495,5]
[312127098,1705656562328,-1045.65136347,0.00025,2]
[312127099,1705656562352,-4719.78899734,0.00025,2]
[312127100,1705656562380,-154.98450155,0.00025,2]
[312127101,1705656562409,-391.0,0.00025176,7]
[312127102,1705656562434,-704.186688,0.00025418,2]
[312127103,1705656562458,-664.03850734,0.000264,2]
[312127104,1705656562484,-3215.46147441,0.000275,2]
[312127105,1705656562515,-155.0,0.00027528,2]
[312127106,1705656562543,-704.186688,0.00027659,2]
[312127107,1705656562568,-302.66994715,0.00027668,2]
[312127108,1705656562593,-200.0,0.00027694,15]
[312127109,1705656562627,-348.0,0.00027694,15]
[312127110,1705656562659,-622.20192537,0.0002772,2]
[312127111,1705656562691,-154.87609912,0.00028,10]
[312127112,1705656562717,-290.08228321,0.00028,2]
[312127113,1705656563097,970.2026327,0.00018925,2]
[312127114,1705656564565,674.78255154,0.00021026,2]
[312127115,1705656565515,154.87609912,0.00025,2]
[312127116,1705656566428,1353.4803625,0.00018925,5]
[312127117,1705656574521,11759.41151562,0.00027525,2]
[312127144,1705656633032,-683.87536543,0.00018909,2]
[312127145,1705656633055,-1824.95710943,0.00021,2]
[312127146,1705656633066,-741.92420917,0.000264,2]
[312127147,1705656633078,-294.70821043,0.00027085,2]
[312127148,1705656633089,-154.87609912,0.00027086,2]
[312127149,1705656633101,-607.13204194,0.00027086,2]
[312127150,1705656633112,-3692.52696448,0.00027086,2]
[312127151,1705656633125,-1027.26203286,0.00027086,2]
[312127152,1705656633136,-178.65716453,0.00027087,2]
[312127153,1705656633148,-1602.24051039,0.00027087,2]
[312127155,1705656633161,-498.00832139,0.00027088,5]
[312127157,1705656633177,-7956.19039627,0.00027499,2]
[312127159,1705656633188,-1108.66524773,0.000275,2]
[312127161,1705656633199,-13140.58848438,0.00027525,2]
[312127163,1705656633212,-626.09621046,0.0002772,2]
[312127165,1705656633225,-290.08228321,0.00028,2]
[312127167,1705656633236,-156.05990121,0.00028383,2]
[312127169,1705656633249,-1045.65136347,0.00028495,2]
[312127171,1705656633266,-18284.16,0.00028506,3]
[312127173,1705656633277,-154.87609912,0.00028514,10]
[312127175,1705656633287,-4011.58774012,0.00028514,2]
[312127177,1705656633299,-21940.99,0.00028514,3]
[312127179,1705656633311,-16863.27,0.00028515,3]
[312127181,1705656633320,-155.29459403,0.00028515,2]
[312127182,1705656633332,-6226.94584176,0.00028516,3]
[312127234,1705656639064,-15236.8,0.00028518,3]
[312127236,1705656639082,-221.4809642,0.00028524,2]
[312127237,1705656639112,-167.89275327,0.00028524,2]
[312127238,1705656639128,-573.81523009,0.00028524,2]
[312127239,1705656639141,-156.31518001,0.00028524,2]
[312127240,1705656639156,-155.238584,0.00028524,2]
[312127241,1705656639176,-156.78271178,0.00028524,2]
[312127243,1705656639192,-831.54419573,0.00028524,2]
[312127246,1705656639218,-191.99494084,0.00028524,2]
[312127248,1705656639237,-335.16567074,0.00028524,2]
[312127251,1705656639250,-531.63445466,0.00028524,2]
[312127253,1705656639265,-222.38653332,0.00028524,2]
[312127255,1705656639277,-156.55141977,0.00028524,2]
[312127257,1705656639292,-159.67263231,0.00028524,2]
[312127260,1705656639306,-164.79588657,0.00028524,2]
[312127262,1705656639328,-157.39904115,0.00028524,2]
[312127264,1705656639343,-824.6042504,0.00028525,2]
[312127266,1705656639359,-5107.80741334,0.00028525,2]
[312127269,1705656639374,-263.94174009,0.00028526,2]
[312127271,1705656639390,-1594.68301813,0.00028526,2]
[312127273,1705656639403,-1292.89594537,0.00028526,2]
[312127275,1705656639418,-1741.90640041,0.00028526,2]
[312127277,1705656639438,-175.88511085,0.00028526,2]
[312127279,1705656639454,-1350.5884452,0.00028526,2]
[312127280,1705656639468,-282.52566814,0.00028526,2]
[312127282,1705656639481,-255.3140191,0.00028526,2]
[312127283,1705656639494,-1050.47942676,0.00028526,2]
[312127285,1705656639514,-2007.5062417,0.00028526,2]
[312127287,1705656639533,-189.79867258,0.00028526,2]
[312127289,1705656639547,-178.21908376,0.00028526,2]
[312127290,1705656639558,-596.27736757,0.00028526,2]
[312127291,1705656639571,-198.96146843,0.00028526,2]
[312127293,1705656639582,-155.59408414,0.00028526,2]
[312127294,1705656639594,-186.2170274,0.00028526,2]
[312127296,1705656639605,-238.23153817,0.00028526,2]
[312127297,1705656639617,-591.49786642,0.00028526,7]
[312127301,1705656639780,-198.16044032,0.00028526,2]
[312127302,1705656639791,-165.38093654,0.00028526,2]
[312127303,1705656639802,-155.66976283,0.00028526,2]
[312127304,1705656639815,-157.74997193,0.00028526,2]
[312127305,1705656639829,-155.77888127,0.00028526,2]
[312127306,1705656639850,-2102.11817883,0.00028526,2]
[312127310,1705656640072,-2996.33579383,0.00028526,2]
[312127311,1705656640084,-2376.22087281,0.00028526,2]
[312127312,1705656640100,-883.30467238,0.00028527,2]
[312127313,1705656640113,-7312.94720704,0.00028527,2]
[312127314,1705656640124,-500.0,0.00028527,2]
[312127315,1705656640135,-500.0,0.00028527,2]
[312127316,1705656640145,-506.61140372,0.00028527,2]
[312127317,1705656640155,-500.0,0.00028527,2]
[312127318,1705656640169,-500.0,0.00028527,2]
[312127319,1705656640183,-368.12793782,0.00028527,2]
[312127320,1705656640195,-500.0,0.00028527,2]
[312127321,1705656640207,-166.82495774,0.00028527,2]
[312127322,1705656640218,-250.6050359,0.00028527,2]
[312127323,1705656640235,-443.78063132,0.00028527,2]
[312127324,1705656640245,-500.0,0.00028527,2]
[312127325,1705656640256,-500.0,0.00028527,2]
[312127326,1705656640266,-166.84638509,0.00028527,2]
[312127327,1705656640287,-500.0,0.00028527,2]
[312127328,1705656640299,-500.0,0.00028527,2]
[312127329,1705656640312,-533.72661073,0.00028527,2]
[312127330,1705656640322,-500.0,0.00028527,2]
[312127331,1705656640333,-500.0,0.00028527,2]
[312127332,1705656640346,-500.0,0.00028527,2]
[312127333,1705656640357,-500.0,0.00028527,2]
[312127334,1705656640368,-500.0,0.00028527,2]
[312127335,1705656640386,-500.0,0.00028527,2]
[312127336,1705656640397,-500.0,0.00028527,2]
[312127337,1705656640408,-500.0,0.00028527,2]
[312127338,1705656640423,-917.64506816,0.00028528,3]
[312127339,1705656640439,-112908.26327592,0.00028528,7]
[312127340,1705656640450,-248.347755,0.00028736,2]
[312127341,1705656640462,-3000.0,0.000288,3]
[312127342,1705656640473,-155.0,0.00028898,2]
[312127343,1705656640485,-1879.41245692,0.00029,2]
[312127344,1705656640498,-154.87609912,0.00029,2]
[312127345,1705656640510,-54792.97642703,0.00029,2]
[312127346,1705656640522,-620.11009627,0.00029106,2]
[312127347,1705656640540,-620.30481052,0.00029106,2]
[312127348,1705656640551,-153.0,0.00029315,2]
[312127349,1705656640563,-199.0432224,0.00029315,2]
[312127350,1705656640574,-153.0,0.00029315,2]
[312127351,1705656640585,-153.0,0.00029315,2]
[312127352,1705656640610,-266.494999,0.00029315,2]
[312127353,1705656640624,-153.0,0.00029315,2]
[312127354,1705656640638,-199.0432224,0.00029315,2]
[312127355,1705656640649,-153.0,0.00029315,2]
[312127356,1705656640661,-153.0,0.00029315,2]
[312127357,1705656640673,-199.0432224,0.00029315,2]
[312127358,1705656640686,-153.0,0.00029315,2]
[312127359,1705656640702,-199.0432224,0.00029315,2]
[312127360,1705656640715,-153.0,0.00029315,2]
[312127361,1705656640726,-154.3668201,0.00029315,2]
[312127362,1705656640738,-199.0432224,0.00029315,2]
[312127363,1705656640751,-153.0,0.00029315,2]
[312127364,1705656640764,-22008.543643,0.000295,30]
[312127365,1705656640777,-153.0,0.00029589,2]
[312127366,1705656640788,-2976.07693367,0.000296,2]
[312127367,1705656640804,-410.306782,0.000296,2]
[312127368,1705656640817,-410.306782,0.000296,2]
[312127369,1705656640829,-38560.35367316,0.000299,2]
[312127370,1705656640840,-704.186688,0.000299,2]
[312127371,1705656640853,-200.0,0.00029943,15]
[312127372,1705656640865,-1775.63,0.00029999,2]
[312127373,1705656640876,-1775.63,0.00029999,2]
[312127374,1705656640886,-1775.63,0.00029999,2]
[312127375,1705656640897,-1775.63,0.00029999,2]
[312127376,1705656640917,-1775.63,0.00029999,2]
[312127377,1705656640935,-1775.63,0.00029999,2]
[312127378,1705656640946,-1775.63,0.00029999,2]
[312127379,1705656640957,-1775.63,0.00029999,2]
[312127380,1705656640971,-1775.63,0.00029999,2]
[312127381,1705656640985,-1775.63,0.00029999,2]
[312127382,1705656640996,-475.01653594,0.00029999,4]
[312127383,1705656641007,-635.0772247,0.00029999,4]
[312127384,1705656641021,-438.49322722,0.00029999,4]
[312127385,1705656641035,-521.80015785,0.00029999,4]
[312127386,1705656641048,-317.53861234,0.00029999,4]
[312127387,1705656641060,-377.622,0.00029999,2]
[312127388,1705656641070,-2157261.0,0.0003,2]
[312127389,1705656641082,-157.68168775,0.0003,4]
[312127390,1705656641092,-230.43340321,0.0003,4]